Cogmind - Beta 14 @@@ ROGUE MODE // 2025.04.27 @ 20:26:52 Player: Domo Result: Destroyed by H-61 Shepherd with Heavy Assault Cannon Performance ------------- Evolutions (2) 1000 Regions Visited (4) 800 Robots Destroyed (33) 165 Value Destroyed (872) 872 Prototype IDs (2) 40 Alien Tech Used (0) 0 Bonus (0) 0 TOTAL SCORE: 2877 Bonus ------- None Cogmind --------- Core Integrity 0/550 Matter 275/300 Energy 69/100 System Corruption 0% Temperature Cool (21) Movement Walking (120) Location -8/Materials Parts ------- > --- POWER (1) -------- (None) > --- PROPULSION (5) --- Aluminum Leg > --- UTILITY (3) ------ (None) > --- WEAPON (2) ------- Heavy Particle Cannon > --- INVENTORY (5) ---- Improved Heat Sink Disposable Heat Sink Disposable Heat Sink Medium Storage Unit Peak State ------------ > --- POWER ------------ Ion Engine > --- PROPULSION ------- Aluminum Leg > --- UTILITY ---------- Medium Storage Unit Advanced Targeting Computer Armor Integrity Analyzer > --- WEAPON ----------- Shock Rifle Improved Medium Laser > --- INVENTORY -------- Ion Engine Reinforced Ion Engine Light Nuclear Core Improved Flight Unit Disposable Heat Sink Disposable Heat Sink [Rating: 17] Favorites ----------- Power Ion Engine Engine Ion Engine Power Core Light Nuclear Core Propulsion Aluminum Leg Treads Light Treads Leg Aluminum Leg Flight Unit Improved Flight Unit Utility Medium Storage Unit Device Disposable Heat Sink Storage Medium Storage Unit Processor Targeting Computer Protection Light Armor Plating Weapon EM Shotgun Energy Gun EM Shotgun Energy Cannon Heavy Particle Cannon Ballistic Gun Assault Rifle Launcher Grenade Launcher Build | -11 -10 -9 -9 -8 ------- Run | Yrd Mat Mat Min Mat Slots Evolved 4 | . . 2 . 2 Power . | . . . . . Propulsion 3 | . . 1 . 2 Utility 1 | . . 1 . . Weapon . | . . . . . Parts Attached 40 | 6 8 9 . 17 Power 8 | 1 2 1 . 4 Engine 7 | 1 2 1 . 3 Core 1 | . . . . 1 Reactor . | . . . . . Propulsion 10 | 2 2 3 . 3 Treads 1 | . . 1 . . Leg 8 | 2 2 2 . 2 Wheel . | . . . . . Hover . | . . . . . Flight 1 | . . . . 1 Utility 9 | 1 3 1 . 4 Device 2 | . . 1 . 1 Storage 2 | 1 1 . . . Processor 3 | . 1 . . 2 Hackware . | . . . . . Protection 2 | . 1 . . 1 Artifact . | . . . . . Weapon 13 | 2 1 4 . 6 Energy Gun 6 | . . 3 . 3 Energy Cannon 2 | . . . . 2 Ballistic Gun 4 | 2 . 1 . 1 Ballistic Cannon . | . . . . . Launcher 1 | . 1 . . . Special Weapon . | . . . . . Impact Weapon . | . . . . . Slashing Weapon . | . . . . . Piercing Weapon . | . . . . . Special Melee Weapon . | . . . . . Unidentified Prototypes . | . . . . . Parts Lost 21 | . . 6 . 15 Power 5 | . . 1 . 4 Propulsion 6 | . . 3 . 3 Utility 3 | . . . . 3 Weapon 7 | . . 2 . 5 Highest Loss Streak 7 | . . 5 . 7 To Critical Strikes . | . . . . . Average Slot Usage (%) 73 | . 98 75 77 50 Engine 10 | . 13 10 11 7 Leg 13 | . 27 13 11 5 Device 5 | . . 7 11 1 Storage 10 | . 13 11 11 5 Processor 10 | . 5 11 11 13 Protection 1 | . 7 . . 1 Energy Gun 15 | . . 19 22 11 Ballistic Gun 4 | . 24 1 . 1 Launcher 1 | . 3 . . . Peak Build Rating 17 | 6 7 13 12 17 Average Rating 10 | 5 6 10 12 13 On Entrance 7 | . 6 7 12 12 Naked Turns . | . . . . . Heaviest Build 22 | 11 20 22 22 22 Greatest Support 30 | 20 20 30 10 10 Greatest Overweight (x) 5 | . 5 2 2 3 Average Overweight (x) 1 | . . 1 2 1 Largest Inventory Capacity 10 | 8 10 10 10 10 Average Capacity 9 | 7 9 10 10 7 Most Carried 8 | 2 6 6 6 8 Average Carried 4 | . 4 3 6 5 Final Capacity 10 | 8 10 10 10 5 Final Carried 6 | 1 6 6 6 4 Class Distribution -------------------- 100% | Mutant Dominant Class ---------------- Mutant | -10/Materials Mutant | -9/Materials Mutant | -9/Mines Mutant | -8/Materials Resources | -11 -10 -9 -9 -8 ----------- Run | Yrd Mat Mat Min Mat Matter Collected 671 | 225 198 145 . 103 Remotely . | . . . . . Salvage Created 1030 | . 235 392 . 403 Parts 66 | . 18 29 . 19 Haulers Intercepted . | . . . . . Recyclers Shooed 1 | . . . . 1 Parts Field Recycled . | . . . . . Retrieved Matter . | . . . . . Parts Self-Destructed . | . . . . . Prevented . | . . . . . Kills | -11 -10 -9 -9 -8 ------- Run | Yrd Mat Mat Min Mat Combat Hostiles Destroyed 30 | . 9 11 . 10 Guns 22 | . 8 7 . 7 Cannons 2 | . . . . 2 AOE 5 | . 1 4 . . Classes Destroyed 6 | . 2 3 . 1 Watcher 3 | . . 3 . . Swarmer 14 | . 6 5 . 3 Grunt 12 | . 3 4 . 5 Brawler 1 | . . 1 . . Sentry 2 | . . 1 . 1 Specialist 1 | . . . . 1 Best Kill Streak 3 | . 3 3 . 3 Combat Bots Only 3 | . 3 3 . 3 Max Kills in Single Turn 2 | . 2 2 . 1 Gunslinging 1 | . 1 . . . Exploded 2 | . 1 2 . . Melee . | . . . . . Uniques/NPCs Destroyed . | . . . . . Combat | -11 -10 -9 -9 -8 -------- Run | Yrd Mat Mat Min Mat Hostile Shots Fired 226 | . 69 39 . 118 Missed 51 | . 17 12 . 22 Damage Taken 2654 | . 508 472 . 1674 Core 861 | . 135 119 . 607 Absorbed by Shields . | . . . . . Regen/Repaired (Parts) 33 | . . . . 33 Core Remaining (%) 72 | 100 46 . 70 . Volleys Fired 123 | . 32 29 . 62 Largest 2 | . 2 2 . 2 Hottest 106 | . 40 101 . 106 Shots Fired 165 | . 62 31 . 72 Gun 156 | . 61 29 . 66 Cannon 6 | . . . . 6 Launcher 3 | . 1 2 . . Special . | . . . . . Kinetic 98 | . 61 6 . 31 Thermal 44 | . . 8 . 36 Explosive 3 | . 1 2 . . Electromagnetic 20 | . . 15 . 5 Robot Hit Streak 11 | . 6 9 . 11 Robot Miss Streak 3 | . 3 3 . 3 Penetration Max . | . . . . . Secondary Targets 3 | . 3 . . . Max Gunslinging Chain 1 | . 1 . . . Shots Hit Robots 110 | . 34 23 . 53 Core Hits 57 | . 15 19 . 23 Critical Kills . | . . . . . Critical Parts Destroyed . | . . . . . Critical Strikes 4 | . . 2 . 2 Burn 4 | . . 2 . 2 Melee Attacks . | . . . . . Impact . | . . . . . Slashing . | . . . . . Piercing . | . . . . . Sneak Attacks . | . . . . . Combat Hostiles . | . . . . . Follow-up Attacks . | . . . . . Damage Inflicted 1706 | . 413 570 . 723 Guns 1300 | . 373 314 . 613 Cannons 100 | . . . . 100 Explosions 293 | . 37 256 . . Melee . | . . . . . Ramming 13 | . 3 . . 10 Kinetic 581 | . 373 40 . 168 Thermal 670 | . . 177 . 493 Explosive 214 | . 37 177 . . Electromagnetic 228 | . . 176 . 52 Impact . | . . . . . Slashing . | . . . . . Piercing . | . . . . . Highest Corruption . | . . . . . Average Corruption . | . . . . . Corruption Purged . | . . . . . Corruption Blocked . | . . . . . Overload Shots . | . . . . . Overflow Damage 44 | . . 44 . . Projectiles . | . . . . . Explosions 44 | . . 44 . . Melee . | . . . . . Knockbacks . | . . . . . Impact . | . . . . . Kinetic . | . . . . . Secondary . | . . . . . Self-Inflicted Damage 204 | . . 203 . 1 Shots 4 | . . 4 . . Rammed 2 | . . . . 2 Targets Rammed 4 | . 1 . . 3 Kicked 2 | . 1 . . 1 Crushed . | . . . . . Highest Temperature 195 | . 101 60 . 195 Average Temperature 35 | . 33 17 . 40 Received Heat Transfer 918 | . 156 69 . 693 Siege Activations . | . . . . . Robots Corrupted . | . . . . . Combat Hostiles . | . . . . . Parts Fried 1 | . . 1 . . Impact Corruptions . | . . . . . Robots Melted 1 | . . . . 1 Combat Hostiles 1 | . . . . 1 Parts Melted 3 | . . 1 . 2 Heat Transferred 1617 | . . 470 . 1147 Parts Sabotaged . | . . . . . Parts Stolen . | . . . . . Parts Stripped . | . . . . . Power Chain Reactions 1 | . . 1 . . Alert | -11 -10 -9 -9 -8 ------- Run | Yrd Mat Mat Min Mat Peak Influence 225 | . 225 176 19 195 Initial 39 | . . 39 19 7 Average 51 | . 75 49 19 61 Maximum Alert Level 1 | . 1 . . . Low Security (%) 97 | 100 86 100 100 100 Level 1 2 | . 13 . . . Level 2 . | . . . . . Level 3 . | . . . . . Level 4 . | . . . . . Level 5 . | . . . . . High Security . | . . . . . Max Security . | . . . . . Squads Dispatched 9 | . 1 3 . 5 Investigation 4 | . . 2 . 2 Extermination . | . . . . . Reinforcement 5 | . 1 1 . 3 Assault . | . . . . . Garrison . | . . . . . Intercept . | . . . . . Searches Triggered . | . . . . . Construction Impeded . | . . . . . Haulers Reinforced . | . . . . . Active Scanning Responses . | . . . . . Cargo Convoy Interrupts . | . . . . . Stealth | -11 -10 -9 -9 -8 --------- Run | Yrd Mat Mat Min Mat Distress Signals 5 | . 1 2 . 2 Communications Jammed . | . . . . . Distress Signals . | . . . . . Times Spotted 53 | . 19 16 . 18 Peak Tracking Total 6 | . 6 3 . 6 Tactical Retreats 5 | . 2 1 . 2 Traps | -11 -10 -9 -9 -8 ------- Run | Yrd Mat Mat Min Mat Traps Triggered 2 | . 1 1 . . Indirectly . | . . . . . Trap Hack Attempts . | . . . . . Triggered . | . . . . . Disarmed . | . . . . . Reprogrammed . | . . . . . Reused . | . . . . . Traps Extracted . | . . . . . Installed . | . . . . . Triggered . | . . . . . Machines | -11 -10 -9 -9 -8 ---------- Run | Yrd Mat Mat Min Mat Machines Disabled 1 | . . 1 . . Max in Single Turn 1 | . . 1 . . Machines Repaired . | . . . . . Machines Dismantled . | . . . . . Machines Sabotaged . | . . . . . Overloaded Fab Kills . | . . . . . Hacking | -11 -10 -9 -9 -8 --------- Run | Yrd Mat Mat Min Mat Machines Accessed 9 | . 1 5 . 3 Terminals 7 | . 1 4 . 2 Fabricators . | . . . . . Repair Stations 1 | . . . . 1 Recycling Units . | . . . . . Scanalyzers 1 | . . 1 . . Garrison Access . | . . . . . Total Hacks 29 | . 2 13 . 14 Successful 15 | . 1 7 . 7 Failed 14 | . 1 6 . 7 Catastrophic 2 | . . . . 2 Database Lockouts . | . . . . . Manual 12 | . . 4 . 8 Terminals 23 | . 2 9 . 12 Fabricators . | . . . . . Repair Stations 2 | . . . . 2 Recycling Units . | . . . . . Scanalyzers 4 | . . 4 . . Garrison Access . | . . . . . Terminal Hacks 10 | . 1 4 . 5 Record 4 | . . 1 . 3 Terminal Index 1 | . . 1 . . Fabricator Index 2 | . . 1 . 1 Dispatch Records 2 | . 1 . . 1 Transport Status 1 | . . 1 . . Fabricator Hacks . | . . . . . Repair Station Hacks 2 | . . . . 2 Scan Component 1 | . . . . 1 Repair 1 | . . . . 1 Recycling Unit Hacks . | . . . . . Scanalyzer 3 | . . 3 . . Insert Component 3 | . . 3 . . Garrison Access Hacks . | . . . . . Unauthorized Hacks . | . . . . . Terminals . | . . . . . Fabricators . | . . . . . Repair Stations . | . . . . . Recycling Units . | . . . . . Scanalyzers . | . . . . . Garrison Access . | . . . . . Data Cores Recovered . | . . . . . Used . | . . . . . Hacking Detections 5 | . . 3 . 2 Full Trace Events 4 | . . 2 . 2 Feedback Events . | . . . . . Feedback Blocked . | . . . . . Robot Schematics Acquired . | . . . . . Robots Built . | . . . . . Authchips . | . . . . . Time . | . . . . . Total Robot Build Rating . | . . . . . Part Schematics Acquired . | . . . . . Parts Built . | . . . . . Authchips . | . . . . . Time . | . . . . . Total Part Build Rating . | . . . . . Parts Repaired 1 | . . . . 1 Time 32 | . . . . 32 Parts Recycled . | . . . . . Recycled Matter . | . . . . . Retrieved Matter . | . . . . . Retrieved Components . | . . . . . Parts Scanalyzed . | . . . . . Part Schematics Acquired . | . . . . . Parts Damaged . | . . . . . Bothacking | -11 -10 -9 -9 -8 ------------ Run | Yrd Mat Mat Min Mat Used RIF Installer . | . . . . . Robots Hacked . | . . . . . Non-combat . | . . . . . Combat . | . . . . . Robot Hacks Applied . | . . . . . Relay Couplers Released . | . . . . . Fabnet Peak Effective % . | . . . . . Robots Rewired . | . . . . . Allies Hacked . | . . . . . Hacks Repelled . | . . . . . Allies | -11 -10 -9 -9 -8 -------- Run | Yrd Mat Mat Min Mat Total Allies 2 | . . . 2 . Largest Group 2 | . . . 2 2 Highest-Rated Group 51 | . . . 51 51 Highest-Rated Ally 31 | . . . 31 31 Total Orders . | . . . . . Ally Attacks 4 | . . . . 4 Total Damage 44 | . . . . 44 Kills 1 | . . . . 1 Allies Corrupted . | . . . . . Allies Melted . | . . . . . Intel | -11 -10 -9 -9 -8 ------- Run | Yrd Mat Mat Min Mat Robot Analysis Total . | . . . . . Derelict Logs Recovered . | . . . . . Drone Launches . | . . . . . Drone Recoveries . | . . . . . Exploration | -11 -10 -9 -9 -8 ------------- Run | Yrd Mat Mat Min Mat Turns Passed 3266 | 77 501 1717 283 688 Spaces Moved 1398 | 59 312 650 103 274 Core 51 | 6 2 . . 43 Treads 13 | . . 13 . . Legs 1239 | 53 310 637 103 136 Wheels . | . . . . . Hover . | . . . . . Flight 95 | . . . . 95 Fastest Speed 40 | 50 120 120 260 40 Average Speed 193 | 112 121 233 260 172 Slowest Speed 300 | 120 300 260 260 260 Overloaded Moves . | . . . . . Propulsion Burnouts . | . . . . . Robots Hopped 1 | . . . . 1 Cave-ins Triggered . | . . . . . Exploration Rate (%) 25 | 3 52 27 33 14 Regions Visited 4 Branch Regions 1 Pre-discovered Areas . | . . . . . Known Exits Taken . | . . . . . Unknown Exits Taken 4 | 1 1 1 1 . Scrap Searched . | . . . . . Spaces Dug . | . . . . . Terrain Destroyed 46 | . 8 36 . 2 Melee . | . . . . . Projectile 2 | . . . . 2 AOE 44 | . 8 36 . . Terrain Rammed . | . . . . . Walls Destroyed . | . . . . . Machines Disabled . | . . . . . Actions | -11 -10 -9 -9 -8 --------- Run | Yrd Mat Mat Min Mat Total 1800 | 67 377 821 119 416 Wait 208 | . 10 127 17 54 Move 1392 | 58 311 649 102 272 Hop 1 | . . . . 1 Pick Up 17 | 2 7 4 . 4 Fast Attach 23 | 6 6 4 . 7 Attach 11 | . 2 3 . 6 Detach 7 | . 4 1 . 2 Swap 6 | . . 2 . 4 Drop 8 | 1 4 2 . 1 Fire 123 | . 32 29 . 62 Melee . | . . . . . Ram 2 | . . . . 2 Kick 2 | . 1 . . 1 Crush . | . . . . . Escape Stasis . | . . . . . Rewire . | . . . . . Trap . | . . . . . Miscellaneous . | . . . . . Route ------- -11/Scrapyard -10/Materials -9/Materials -9/Mines (discovered 2 exits: *Mat x2) -8/Materials History --------- Turn | Location | Event 13 | -11/Scrapyard | Discovered new exit (range 15) 78 | -11/Scrapyard | Entered Materials 318 | -10/Materials | Build established: Mutant 531 | -10/Materials | Discovered new exit (range 16) 538 | -10/Materials | Core integrity fell below 50% 579 | -10/Materials | Entered another Materials area 579 | -9/Materials | Evolved 2 slots: Propulsion x1, Utility x1 780 | -9/Materials | Lost 5 parts (1p2n2w) 2180 | -9/Materials | Discovered new exit (range 16) 2296 | -9/Materials | Entered Mines 2296 | -9/Mines | Discovered new exit (range 7) 2495 | -9/Mines | Discovered new exit (range 15) 2579 | -9/Mines | Entered Materials 2579 | -8/Materials | Accompanied by 2 allies 2579 | -8/Materials | Evolved 2 slots: Propulsion x2 2584 | -8/Materials | Led the pair of lost Derelicts to an unsafe place 2872 | -8/Materials | Repaired EM Shotgun 2988 | -8/Materials | Lost 5 parts (1p1n1u2w) 3203 | -8/Materials | Core integrity fell below 50% 3254 | -8/Materials | Core integrity fell below 20% 3267 | -8/Materials | Destroyed by H-61 Shepherd with Heavy Assault Cannon Last Messages --------------- M-13 Machinist repairs G-47 Trooper. W-25 Informer sends out distress signal. Aluminum Leg destroyed. Imp. Flight Unit destroyed. Slammed into W-25 Informer. Acquired 3 matter. Acquired 2 matter. Critical hit (Burn: +37). Lgt. Nuclear Core destroyed. ALERT: Suspicious intruders detected, dispatching Cutter reinforcements to area. Acquired Hvy. Particle Cannon. Rnf. Ion Engine destroyed. G-47 Trooper destroyed. Penetrated by Slug. Acquired Hvy. Particle Cannon. Hvy. Particle Cannon destroyed. Armor Integrity Analyzer destroyed. Critical hit (Blast). Acquired Aluminum Leg. Map ----- +----------------------------------------------------+ | ??????????????????????????????????? | | ??????????????????????????????????? | | ??????????????????????????????????? | | ??????????????????????????????????? | | ??????????????????????????????????? | | ??????#####???????????????????????? | | ??????# ##########??????????????? | | ??????# T ???????? | | ??????# ##########??????????????? | | ??????## ##???????????????????????? | | ???????# #????????????????????????? | | ######## ########?????????????????? | | # # # #?????????????????? | | # """ # # """ #?????????????????? | | # """ +%/ """ #?????????????????? | | # """ # # """ #?????????????????? | | # # / #?????????????????? | | # ! * #%# "T" #?????????????????? | | ########%########?????????????????? | | ???????# #???????????????????? | | ???????######%#???????????????????? | | ?############%#???????????????????? | | ?# ##%#???##??????????????? | | ?# """% #; ####%#;##"## #??? | | ?# "T" !!% %g #??? | | ?# ! @;* % H #??? | | ?# """ ! [%[%% r % r #??? | | ?# """ % ## #######;#### #??? | | ?# """ ! ## #??????????????###??? | | ?# ##%#???????????????????? | | ?####### ####+#######?????????????? | | ???????#### ! #?????????????? | | ??????????# """ #?????????????? | | ??????????# """ #?????????????? | | ??????????# """ * #?????????????? | | ??????????# "*"#?????????????? | | ???######## [R #?????????????? | | ???# #! """#?????????????? | | ???# # #?#####???????? | | ???# """########+## #???????? | | ???# """#?# [#???????? | | ???# """#?# T #???????? | | ???# #?# ! #???????? | | ???#####+#### ##### #???????? | | ???# #????## ###???????? | | ???# #?????? #?????????? | | ???# #???????#?????????? | | ???# ## !*! #?????????????????? | | ???# ## !*! #?????????????????? | | ???# ## !* #?????????????????? | +----------------------------------------------------+ Best States ------------- Heat Dissipation 45 Coolant Potential 50 Energy Generation 14 Energy Capacity 265 Matter Stores 300 Matter Capacity 300 Sight Range 16 Terrain Scan Density 10 Armor Coverage 150 Evasion (%) 55 Targeting Accuracy 8 Armor Integrity Analysis 30 Recoil Reduction 1 Item Schematics ----------------- None Robot Schematics ------------------ None Fabricated ------------ Nothing Alien Tech Used ----------------- None Achievements -------------- Safety First Challenges ------------ None Game ------ Seed AssaultMissileMicroactuators Manual? 0 Play Time 00:36:27 Cumulative 12.3 hours Start 2025.04.26 @ 17:33:59 End 2025.04.27 @ 20:26:52 Sessions 2 Manual Loads 0 Difficulty Rogue Special Mode None Game No. 14 Rogue 3 Adventurer 11 Explorer 0 Win Type - Total 0 Types 0/0/0/0/0/0/0/0/0 Lore% 4 Gallery% 11 Achievement% 13 Wizard Run 0 Options --------- Layout 1 ASCII 0 Keyboard 1 Movement Vi Keybinds 0 Fullscreen 2 Font 24/Smallcaps Map View 50x35 Zoom Use 0% Tactical HUD 0 Map Filters NONE Filters NONE Steam 1 RUN: 1e787b64-8751-426b-b7ea-8c9a448f411e